[Event "*** Biggest EVER Titled Tuesday"]
[Site "Chess.com"]
[Date "2018.04.17"]
[Round "4"]
[White "nihalsarin"]
[Black "Fablibi"]
[Result "1/2-1/2"]
[WhiteElo "2736"]
[BlackElo "2522"]
[TimeControl "180+2"]
[EndTime "13:52:42 PDT"]
[Termination "Game drawn by repetition"]

1. Nf3 {[%clk 0:03:01.9]} 1... Nf6 {[%clk 0:02:59.1]} 2. g3 {[%clk 0:03:03.8]}
2... g6 {[%clk 0:02:59.7]} 3. b3 {[%clk 0:03:04.5]} 3... Bg7 {[%clk 0:03:00.4]}
4. Bb2 {[%clk 0:03:06.1]} 4... d6 {[%clk 0:02:59.4]} 5. Bg2 {[%clk 0:03:07.6]}
5... c5 {[%clk 0:02:47.7]} 6. c4 {[%clk 0:03:06.8]} 6... O-O {[%clk 0:02:44.4]}
7. O-O {[%clk 0:03:08.2]} 7... Nc6 {[%clk 0:02:43.3]} 8. d4 {[%clk 0:03:07.9]}
8... cxd4 {[%clk 0:02:33]} 9. Nxd4 {[%clk 0:03:09.8]} 9... Bd7 {[%clk
0:02:34.6]} 10. Nc3 {[%clk 0:03:08.9]} 10... Rc8 {[%clk 0:02:32.6]} 11. Rc1
{[%clk 0:03:07.6]} 11... Qa5 {[%clk 0:02:30.1]} 12. Nxc6 {[%clk 0:03:01.2]}
12... Bxc6 {[%clk 0:02:12.2]} 13. Qd3 {[%clk 0:02:56.5]} 13... Nd7 {[%clk
0:01:35.1]} 14. Rfd1 {[%clk 0:02:53.7]} 14... Rfd8 {[%clk 0:01:26.7]} 15. Qd2
{[%clk 0:02:51.1]} 15... Bxg2 {[%clk 0:01:26.5]} 16. Kxg2 {[%clk 0:02:53]} 16...
Nf6 {[%clk 0:01:03.6]} 17. Rc2 {[%clk 0:02:30.4]} 17... Kf8 {[%clk 0:01:00.3]}
18. Qd3 {[%clk 0:02:27.8]} 18... a6 {[%clk 0:00:58.4]} 19. a4 {[%clk 0:02:13.2]}
19... Qb4 {[%clk 0:00:47.3]} 20. Na2 {[%clk 0:01:59.6]} 20... Qb6 {[%clk
0:00:48.1]} 21. e4 {[%clk 0:01:49.5]} 21... Nd7 {[%clk 0:00:48.5]} 22. Bxg7+
{[%clk 0:01:48.9]} 22... Kxg7 {[%clk 0:00:50.4]} 23. f3 {[%clk 0:01:38.8]} 23...
Nc5 {[%clk 0:00:48.4]} 24. Qc3+ {[%clk 0:01:36.5]} 24... Kg8 {[%clk 0:00:49.6]}
25. Rb2 {[%clk 0:01:36.2]} 25... a5 {[%clk 0:00:49.1]} 26. Nc1 {[%clk
0:01:32.8]} 26... Na6 {[%clk 0:00:43]} 27. Ne2 {[%clk 0:01:19.9]} 27... Qb4
{[%clk 0:00:42.8]} 28. Qxb4 {[%clk 0:01:12.1]} 28... Nxb4 {[%clk 0:00:40.7]} 29.
Nc3 {[%clk 0:01:10]} 29... Kf8 {[%clk 0:00:37.9]} 30. Rbd2 {[%clk 0:01:10]}
30... Rc5 {[%clk 0:00:35.9]} 31. Kf2 {[%clk 0:01:08.3]} 31... Rdc8 {[%clk
0:00:36.6]} 32. Ke3 {[%clk 0:01:08.3]} 32... h5 {[%clk 0:00:36.9]} 33. h4 {[%clk
0:01:08.3]} 33... Ke8 {[%clk 0:00:37.4]} 34. Nb5 {[%clk 0:01:07.2]} 34... Kd7
{[%clk 0:00:30.9]} 35. f4 {[%clk 0:01:06]} 35... f6 {[%clk 0:00:25.9]} 36. Nd4
{[%clk 0:01:03.7]} 36... Nc6 {[%clk 0:00:23]} 37. Nb5 {[%clk 0:01:03.5]} 37...
Nb4 {[%clk 0:00:23.6]} 38. Kf3 {[%clk 0:01:03.8]} 38... Ke6 {[%clk 0:00:21.5]}
39. Ke3 {[%clk 0:01:02.5]} 39... Kd7 {[%clk 0:00:21.6]} 1/2-1/2

[Event "*** Biggest EVER Titled Tuesday"]
[Site "Chess.com"]
[Date "2018.04.17"]
[Round "4"]
[White "Cecile-Haussernot"]
[Black "Supernotar"]
[Result "1-0"]
[WhiteElo "2323"]
[BlackElo "2439"]
[TimeControl "180+2"]
[EndTime "13:52:43 PDT"]
[Termination "Cecile-Haussernot won by checkmate"]

1. e4 {[%clk 0:03:01.9]} 1... c6 {[%clk 0:03:00.5]} 2. d4 {[%clk 0:03:02]} 2...
d5 {[%clk 0:02:51.4]} 3. e5 {[%clk 0:03:03.1]} 3... Bf5 {[%clk 0:02:51.4]} 4. h4
{[%clk 0:02:58]} 4... h5 {[%clk 0:02:51.8]} 5. Bd3 {[%clk 0:02:57.7]} 5... Bxd3
{[%clk 0:02:52.7]} 6. Qxd3 {[%clk 0:02:59.6]} 6... Qa5+ {[%clk 0:02:53.9]} 7.
Bd2 {[%clk 0:02:58.7]} 7... Qa6 {[%clk 0:02:55.1]} 8. e6 {[%clk 0:02:59.2]} 8...
Qxd3 {[%clk 0:02:54.5]} 9. exf7+ {[%clk 0:02:59.6]} 9... Kxf7 {[%clk 0:02:55.9]}
10. cxd3 {[%clk 0:03:01.1]} 10... Nd7 {[%clk 0:02:54.1]} 11. Nf3 {[%clk
0:03:01.2]} 11... e6 {[%clk 0:02:45.4]} 12. O-O {[%clk 0:03:00.2]} 12... Be7
{[%clk 0:02:43.7]} 13. Re1 {[%clk 0:03:00.2]} 13... Bf6 {[%clk 0:02:44.6]} 14.
Nc3 {[%clk 0:02:56.2]} 14... Nh6 {[%clk 0:02:45]} 15. Bxh6 {[%clk 0:02:56.5]}
15... Rxh6 {[%clk 0:02:45.2]} 16. Ng5+ {[%clk 0:02:55.2]} 16... Bxg5 {[%clk
0:02:44.8]} 17. hxg5 {[%clk 0:02:57.1]} 17... Rhh8 {[%clk 0:02:44.5]} 18. f4
{[%clk 0:02:55.2]} 18... g6 {[%clk 0:02:45.4]} 19. Re2 {[%clk 0:02:53.4]} 19...
Rae8 {[%clk 0:02:46.3]} 20. Rae1 {[%clk 0:02:53.6]} 20... Re7 {[%clk 0:02:47.2]}
21. Nd1 {[%clk 0:02:52.1]} 21... Nb6 {[%clk 0:02:39.7]} 22. Nc3 {[%clk
0:02:46.6]} 22... Nc8 {[%clk 0:02:38.5]} 23. Nb1 {[%clk 0:02:42]} 23... Nd6
{[%clk 0:02:38.3]} 24. Nd2 {[%clk 0:02:42.4]} 24... Nf5 {[%clk 0:02:39.2]} 25.
Nf3 {[%clk 0:02:43.7]} 25... Rhe8 {[%clk 0:02:27.2]} 26. Rc1 {[%clk 0:02:41.8]}
26... Rc8 {[%clk 0:02:24.2]} 27. Rc3 {[%clk 0:02:42.2]} 27... Rec7 {[%clk
0:02:21.4]} 28. b4 {[%clk 0:02:37.5]} 28... a6 {[%clk 0:02:17.9]} 29. a4 {[%clk
0:02:37.1]} 29... Ke7 {[%clk 0:02:06.5]} 30. Kf2 {[%clk 0:02:36.4]} 30... Kd6
{[%clk 0:02:07.1]} 31. Rec2 {[%clk 0:02:33.4]} 31... b6 {[%clk 0:02:04.2]} 32.
Rb3 {[%clk 0:02:19.5]} 32... Ra8 {[%clk 0:01:51.8]} 33. a5 {[%clk 0:02:18.8]}
33... Rb8 {[%clk 0:01:46.1]} 34. Ra2 {[%clk 0:02:18.4]} 34... Rcb7 {[%clk
0:01:44.6]} 35. axb6 {[%clk 0:02:12.9]} 35... Rxb6 {[%clk 0:01:42]} 36. Rc3
{[%clk 0:02:13.7]} 36... Rxb4 {[%clk 0:01:37.1]} 37. Rxa6 {[%clk 0:02:12.7]}
37... Rb2+ {[%clk 0:01:38.2]} 38. Kg1 {[%clk 0:02:11.5]} 38... R8b6 {[%clk
0:01:38.6]} 39. Ra7 {[%clk 0:02:10]} 39... Ne3 {[%clk 0:01:35.8]} 40. Nh4 {[%clk
0:02:03]} 40... Rb1+ {[%clk 0:01:28.5]} 41. Kh2 {[%clk 0:02:02.5]} 41... Ng4+
{[%clk 0:01:27.9]} 42. Kg3 {[%clk 0:02:01.6]} 42... Re1 {[%clk 0:01:26.2]} 43.
Rg7 {[%clk 0:01:42]} 43... Rb2 {[%clk 0:01:21.7]} 44. Ra3 {[%clk 0:01:12.6]}
44... Re3+ {[%clk 0:01:17.9]} 45. Nf3 {[%clk 0:01:12.2]} 45... Ree2 {[%clk
0:01:19.3]} 46. Raa7 {[%clk 0:01:10.7]} 46... Rxg2+ {[%clk 0:01:17.8]} 47. Kh4
{[%clk 0:01:11.3]} 47... c5 {[%clk 0:00:41.8]} 48. Ra6+ {[%clk 0:01:10.7]} 48...
Rb6 {[%clk 0:00:41.8]} 49. Rxb6# {[%clk 0:01:12.6]} 1-0

[Event "*** Biggest EVER Titled Tuesday"]
[Site "Chess.com"]
[Date "2018.04.17"]
[Round "4"]
[White "Kangoroo3000"]
[Black "Quiet_Desperation"]
[Result "0-1"]
[WhiteElo "2423"]
[BlackElo "2414"]
[TimeControl "180+2"]
[EndTime "13:52:48 PDT"]
[Termination "Quiet_Desperation won by resignation"]

1. d4 {[%clk 0:03:01.9]} 1... Nf6 {[%clk 0:03:00]} 2. c4 {[%clk 0:03:03.1]} 2...
e6 {[%clk 0:03:01]} 3. g3 {[%clk 0:03:03.4]} 3... Bb4+ {[%clk 0:03:01]} 4. Bd2
{[%clk 0:03:04.4]} 4... Qe7 {[%clk 0:03:01.7]} 5. Bg2 {[%clk 0:03:04.4]} 5...
Nc6 {[%clk 0:03:01.4]} 6. e3 {[%clk 0:03:04.1]} 6... O-O {[%clk 0:02:59.9]} 7.
Ne2 {[%clk 0:03:04.8]} 7... Bxd2+ {[%clk 0:03:00.9]} 8. Nxd2 {[%clk 0:03:05.1]}
8... d6 {[%clk 0:03:02.1]} 9. O-O {[%clk 0:03:06.2]} 9... e5 {[%clk 0:03:03.3]}
10. d5 {[%clk 0:03:07.6]} 10... Nb8 {[%clk 0:03:04.3]} 11. b4 {[%clk 0:03:08.3]}
11... c6 {[%clk 0:03:03.5]} 12. Nc3 {[%clk 0:03:08.5]} 12... cxd5 {[%clk
0:03:04.1]} 13. Nxd5 {[%clk 0:03:09.7]} 13... Nxd5 {[%clk 0:03:05]} 14. Bxd5
{[%clk 0:03:11.6]} 14... Nc6 {[%clk 0:03:03.9]} 15. Qb3 {[%clk 0:03:09.9]} 15...
Be6 {[%clk 0:03:02.9]} 16. a4 {[%clk 0:03:08.3]} 16... Bxd5 {[%clk 0:03:01.8]}
17. cxd5 {[%clk 0:03:10.2]} 17... Nb8 {[%clk 0:03:01.3]} 18. Rfc1 {[%clk
0:03:04.6]} 18... Na6 {[%clk 0:03:02.1]} 19. Rc3 {[%clk 0:02:50.3]} 19... f5
{[%clk 0:02:57.6]} 20. Rac1 {[%clk 0:02:50.9]} 20... f4 {[%clk 0:02:49.9]} 21.
b5 {[%clk 0:02:48.3]} 21... Nc5 {[%clk 0:02:49.2]} 22. Qb4 {[%clk 0:02:35.5]}
22... fxg3 {[%clk 0:02:41.6]} 23. hxg3 {[%clk 0:02:06.3]} 23... Qf7 {[%clk
0:02:39.3]} 24. Rf1 {[%clk 0:01:59.1]} 24... Qxd5 {[%clk 0:02:37.8]} 25. Qc4
{[%clk 0:01:35.1]} 25... Qxc4 {[%clk 0:02:32.2]} 26. Rxc4 {[%clk 0:01:37]} 26...
Kf7 {[%clk 0:02:21.6]} 27. f4 {[%clk 0:01:30.5]} 27... Ke6 {[%clk 0:02:05]} 28.
Nf3 {[%clk 0:01:23.5]} 28... exf4 {[%clk 0:01:45.2]} 29. gxf4 {[%clk 0:01:17.5]}
29... h6 {[%clk 0:01:38.1]} 30. Rd1 {[%clk 0:01:13.9]} 30... Rac8 {[%clk
0:01:15.9]} 31. Rcd4 {[%clk 0:01:10.2]} 31... Rfd8 {[%clk 0:01:12.2]} 32. Nh4
{[%clk 0:01:01.3]} 32... g6 {[%clk 0:00:54.5]} 33. Kf2 {[%clk 0:00:54.3]} 33...
g5 {[%clk 0:00:52.7]} 34. f5+ {[%clk 0:00:37.4]} 34... Kf6 {[%clk 0:00:37.8]}
35. Ng6 {[%clk 0:00:33.1]} 35... Rc7 {[%clk 0:00:19]} 36. Rxd6+ {[%clk
0:00:33.6]} 36... Rxd6 {[%clk 0:00:20.1]} 37. Rxd6+ {[%clk 0:00:35]} 37... Kxf5
{[%clk 0:00:21.5]} 38. Nh8 {[%clk 0:00:27.9]} 38... Ne4+ {[%clk 0:00:22.4]} 39.
Kf3 {[%clk 0:00:26.6]} 39... Nxd6 {[%clk 0:00:23.9]} 0-1

[Event "*** Biggest EVER Titled Tuesday"]
[Site "Chess.com"]
[Date "2018.04.17"]
[Round "4"]
[White "Andreikka"]
[Black "Imre91"]
[Result "0-1"]
[WhiteElo "2792"]
[BlackElo "2692"]
[TimeControl "180+2"]
[EndTime "13:52:53 PDT"]
[Termination "Imre91 won by resignation"]

1. d4 {[%clk 0:03:00.4]} 1... d5 {[%clk 0:02:57.6]} 2. Nf3 {[%clk 0:03:00.9]}
2... Nf6 {[%clk 0:02:57.5]} 3. Bf4 {[%clk 0:03:02.4]} 3... Bf5 {[%clk
0:02:49.4]} 4. e3 {[%clk 0:03:02.2]} 4... e6 {[%clk 0:02:47.5]} 5. c4 {[%clk
0:03:03.6]} 5... Bxb1 {[%clk 0:02:42.5]} 6. Qxb1 {[%clk 0:03:04.6]} 6... Bb4+
{[%clk 0:02:38.3]} 7. Kd1 {[%clk 0:03:06.1]} 7... Bd6 {[%clk 0:02:31.4]} 8. Bg3
{[%clk 0:03:05.7]} 8... O-O {[%clk 0:02:12.8]} 9. cxd5 {[%clk 0:03:00]} 9...
exd5 {[%clk 0:02:09.4]} 10. Bd3 {[%clk 0:03:00.6]} 10... Re8 {[%clk 0:02:01.8]}
11. Ke2 {[%clk 0:03:01.1]} 11... a6 {[%clk 0:01:54.8]} 12. Bh4 {[%clk
0:02:43.5]} 12... h6 {[%clk 0:01:51.3]} 13. Rc1 {[%clk 0:02:43.3]} 13... Nbd7
{[%clk 0:01:47]} 14. Bf5 {[%clk 0:02:44.1]} 14... c6 {[%clk 0:01:41.5]} 15. Bxd7
{[%clk 0:01:57.4]} 15... Qxd7 {[%clk 0:01:41]} 16. Bxf6 {[%clk 0:01:58.7]} 16...
gxf6 {[%clk 0:01:41.2]} 17. g3 {[%clk 0:01:53.9]} 17... Qh3 {[%clk 0:01:36.5]}
18. Qd3 {[%clk 0:01:45.7]} 18... Re4 {[%clk 0:01:30.8]} 19. Kd1 {[%clk
0:01:46.7]} 19... Qg4 {[%clk 0:01:23]} 20. Qe2 {[%clk 0:01:43.4]} 20... Rae8
{[%clk 0:01:23.6]} 21. Rc3 {[%clk 0:01:41.2]} 21... f5 {[%clk 0:01:19.8]} 22.
Kc2 {[%clk 0:01:35.5]} 22... f4 {[%clk 0:01:16.6]} 23. gxf4 {[%clk 0:01:35.9]}
23... Qxf4 {[%clk 0:01:14.9]} 24. Rg1+ {[%clk 0:01:33.2]} 24... Kh8 {[%clk
0:01:14.5]} 25. Kb1 {[%clk 0:01:13.7]} 25... Qf5 {[%clk 0:01:10.5]} 26. Ka1
{[%clk 0:01:14.3]} 26... Rf4 {[%clk 0:01:00.8]} 27. Rg3 {[%clk 0:01:03.8]} 27...
Qh5 {[%clk 0:00:58.9]} 28. Rc2 {[%clk 0:00:40.8]} 28... Rf5 {[%clk 0:00:53.5]}
29. Ne5 {[%clk 0:00:38.7]} 29... Rxf2 {[%clk 0:00:43.3]} 30. Qd3 {[%clk
0:00:18.1]} 30... Bxe5 {[%clk 0:00:36.2]} 31. dxe5 {[%clk 0:00:12.8]} 31... Qxh2
{[%clk 0:00:33.1]} 32. Rxf2 {[%clk 0:00:03.5]} 32... Qxf2 {[%clk 0:00:30.8]} 33.
e4 {[%clk 0:00:03.3]} 0-1

[Event "*** Biggest EVER Titled Tuesday"]
[Site "Chess.com"]
[Date "2018.04.17"]
[Round "4"]
[White "gmjlh"]
[Black "Parhamov"]
[Result "0-1"]
[WhiteElo "2565"]
[BlackElo "2786"]
[TimeControl "180+2"]
[EndTime "13:52:53 PDT"]
[Termination "Parhamov won on time"]

1. d4 {[%clk 0:03:00.9]} 1... Nf6 {[%clk 0:02:59.3]} 2. Nf3 {[%clk 0:03:01.8]}
2... g6 {[%clk 0:02:54.4]} 3. c4 {[%clk 0:03:01.6]} 3... Bg7 {[%clk 0:02:55.5]}
4. g3 {[%clk 0:03:02.1]} 4... O-O {[%clk 0:02:56.5]} 5. Bg2 {[%clk 0:03:02.6]}
5... Nc6 {[%clk 0:02:55.9]} 6. O-O {[%clk 0:03:02.6]} 6... a6 {[%clk 0:02:56]}
7. Nc3 {[%clk 0:03:02.7]} 7... Rb8 {[%clk 0:02:56.5]} 8. d5 {[%clk 0:02:56.2]}
8... Na5 {[%clk 0:02:56.3]} 9. c5 {[%clk 0:02:56.3]} 9... d6 {[%clk 0:02:45.8]}
10. Qa4 {[%clk 0:02:50.4]} 10... c6 {[%clk 0:02:38.2]} 11. dxc6 {[%clk
0:02:50.4]} 11... Nxc6 {[%clk 0:02:36.3]} 12. cxd6 {[%clk 0:02:49.8]} 12... b5
{[%clk 0:02:28.9]} 13. Qh4 {[%clk 0:02:37.7]} 13... Bb7 {[%clk 0:02:29.4]} 14.
Rd1 {[%clk 0:02:27.5]} 14... b4 {[%clk 0:02:26.9]} 15. Na4 {[%clk 0:02:06.3]}
15... Qa5 {[%clk 0:02:14.9]} 16. b3 {[%clk 0:02:01.9]} 16... exd6 {[%clk
0:02:09.2]} 17. Bb2 {[%clk 0:01:53.5]} 17... Ne8 {[%clk 0:01:56.6]} 18. Bxg7
{[%clk 0:01:51.5]} 18... Nxg7 {[%clk 0:01:57.2]} 19. Ng5 {[%clk 0:01:36.7]}
19... h5 {[%clk 0:01:55.9]} 20. Ne4 {[%clk 0:01:37.4]} 20... Qe5 {[%clk
0:01:48.8]} 21. f4 {[%clk 0:01:13.2]} 21... Qa5 {[%clk 0:01:35.8]} 22. Rxd6
{[%clk 0:00:37.9]} 22... Nf5 {[%clk 0:01:16.9]} 23. Nf6+ {[%clk 0:00:36.9]}
23... Kh8 {[%clk 0:01:12.8]} 24. Qg5 {[%clk 0:00:38.1]} 24... Nce7 {[%clk
0:00:52.6]} 25. e4 {[%clk 0:00:32]} 25... Qc7 {[%clk 0:00:40.4]} 26. Rd7 {[%clk
0:00:30.2]} 26... Qc2 {[%clk 0:00:39.9]} 27. Rxe7 {[%clk 0:00:29.1]} 27... Rbd8
{[%clk 0:00:36.5]} 28. h3 {[%clk 0:00:26.6]} 28... Rd2 {[%clk 0:00:36.2]} 29.
Bf1 {[%clk 0:00:20.7]} 29... Rh2 {[%clk 0:00:31.3]} 30. Ng4 {[%clk 0:00:11.8]}
30... hxg4 {[%clk 0:00:30.6]} 31. Qf6+ {[%clk 0:00:12.8]} 31... Kg8 {[%clk
0:00:30.4]} 32. Qb6 {[%clk 0:00:11.9]} 32... Nxg3 {[%clk 0:00:26]} 0-1

[Event "*** Biggest EVER Titled Tuesday"]
[Site "Chess.com"]
[Date "2018.04.17"]
[Round "4"]
[White "Slovak_fighter2000"]
[Black "stalyansky"]
[Result "1/2-1/2"]
[WhiteElo "2258"]
[BlackElo "2129"]
[TimeControl "180+2"]
[EndTime "13:52:53 PDT"]
[Termination "Game drawn by agreement"]

1. d4 {[%clk 0:03:01.9]} 1... d5 {[%clk 0:03:00.7]} 2. Nf3 {[%clk 0:03:00.1]}
2... Nf6 {[%clk 0:03:01.7]} 3. Bf4 {[%clk 0:02:59.8]} 3... c5 {[%clk 0:02:59.7]}
4. e3 {[%clk 0:03:00.9]} 4... Nc6 {[%clk 0:03:00.1]} 5. Nbd2 {[%clk 0:03:02]}
5... e6 {[%clk 0:02:59.6]} 6. c3 {[%clk 0:03:02.6]} 6... Bd6 {[%clk 0:02:58.8]}
7. Bg3 {[%clk 0:03:03.7]} 7... O-O {[%clk 0:03:00]} 8. Bd3 {[%clk 0:03:03.4]}
8... b6 {[%clk 0:03:01.2]} 9. O-O {[%clk 0:03:03.3]} 9... Bb7 {[%clk 0:03:02.7]}
10. Qe2 {[%clk 0:03:03.3]} 10... Ne7 {[%clk 0:03:01.3]} 11. Bxd6 {[%clk
0:03:00.9]} 11... Qxd6 {[%clk 0:03:01.3]} 12. Ne5 {[%clk 0:03:02.8]} 12... Ne4
{[%clk 0:02:15.8]} 13. Nxe4 {[%clk 0:02:48]} 13... dxe4 {[%clk 0:02:16]} 14. Bc2
{[%clk 0:02:49.9]} 14... f6 {[%clk 0:02:03.6]} 15. Nc4 {[%clk 0:02:46]} 15...
Qc7 {[%clk 0:02:04.4]} 16. Nd2 {[%clk 0:02:47]} 16... f5 {[%clk 0:02:00.1]} 17.
Bb3 {[%clk 0:02:47.7]} 17... Bd5 {[%clk 0:01:39.2]} 18. f3 {[%clk 0:02:28]}
18... exf3 {[%clk 0:00:58.5]} 19. Nxf3 {[%clk 0:02:29.9]} 19... Rad8 {[%clk
0:00:43.9]} 20. Ne5 {[%clk 0:02:28.2]} 20... Nc6 {[%clk 0:00:37.1]} 21. Nxc6
{[%clk 0:02:23.9]} 21... Qxc6 {[%clk 0:00:36.8]} 22. Bxd5 {[%clk 0:02:23.7]}
22... Qxd5 {[%clk 0:00:35.4]} 23. a4 {[%clk 0:02:17.9]} 23... cxd4 {[%clk
0:00:26.1]} 24. exd4 {[%clk 0:02:17.8]} 24... Rf6 {[%clk 0:00:18.2]} 25. Qb5
{[%clk 0:02:16.4]} 25... Rg6 {[%clk 0:00:17.1]} 26. Qxd5 {[%clk 0:02:17.3]}
26... Rxd5 {[%clk 0:00:17.9]} 27. Rae1 {[%clk 0:02:17.2]} 27... Kf7 {[%clk
0:00:18.8]} 28. Re2 {[%clk 0:02:17.1]} 28... Rg4 {[%clk 0:00:19.2]} 29. h3
{[%clk 0:02:16.9]} 29... Rg6 {[%clk 0:00:15.6]} 30. Kf2 {[%clk 0:02:17.4]} 30...
h5 {[%clk 0:00:16.5]} 31. g3 {[%clk 0:02:16.7]} 31... Rf6 {[%clk 0:00:17.2]} 32.
h4 {[%clk 0:02:17.1]} 32... f4 {[%clk 0:00:17.7]} 33. Kg2 {[%clk 0:02:13.5]}
33... fxg3 {[%clk 0:00:17.5]} 34. Rxf6+ {[%clk 0:02:13]} 34... gxf6 {[%clk
0:00:18.6]} 35. Kxg3 {[%clk 0:02:14.3]} 35... Ra5 {[%clk 0:00:19.7]} 36. b3
{[%clk 0:02:14.7]} 36... b5 {[%clk 0:00:17.2]} 37. axb5 {[%clk 0:02:12.9]} 37...
Rxb5 {[%clk 0:00:18.4]} 38. b4 {[%clk 0:02:14.2]} 38... a5 {[%clk 0:00:18.5]}
39. bxa5 {[%clk 0:02:14.7]} 39... Rxa5 {[%clk 0:00:19.8]} 40. Rc2 {[%clk
0:02:15.4]} 40... Ra3 {[%clk 0:00:20.7]} 41. Kf4 {[%clk 0:02:16.3]} 41... e5+
{[%clk 0:00:20.5]} 42. dxe5 {[%clk 0:02:16]} 42... fxe5+ {[%clk 0:00:17.5]} 43.
Kxe5 {[%clk 0:02:16.5]} 43... Ra1 {[%clk 0:00:19.1]} 44. Kf5 {[%clk 0:02:16.4]}
44... Rg1 {[%clk 0:00:20.1]} 45. c4 {[%clk 0:02:15.5]} 45... Rg4 {[%clk
0:00:20.8]} 46. c5 {[%clk 0:02:16.7]} 46... Ke7 {[%clk 0:00:21.2]} 47. c6 {[%clk
0:02:17.6]} 47... Kd8 {[%clk 0:00:22]} 48. Rc5 {[%clk 0:02:02.7]} 48... Rxh4
{[%clk 0:00:22]} 49. Ke6 {[%clk 0:02:03.9]} 49... Kc7 {[%clk 0:00:20.7]} 50. Kd5
{[%clk 0:01:57.5]} 50... Rh1 {[%clk 0:00:20.5]} 51. Rc4 {[%clk 0:01:56.8]} 51...
h4 {[%clk 0:00:20.9]} 52. Rg4 {[%clk 0:01:52.3]} 52... Rd1+ {[%clk 0:00:20.9]}
53. Kc5 {[%clk 0:01:53]} 53... Rc1+ {[%clk 0:00:22.1]} 54. Kd5 {[%clk
0:01:54.4]} 54... Rxc6 {[%clk 0:00:21.6]} 55. Rxh4 {[%clk 0:01:55.7]} 55... Kb6
{[%clk 0:00:22.4]} 56. Rb4+ {[%clk 0:01:55.5]} 56... Ka5 {[%clk 0:00:22.1]} 57.
Rb8 {[%clk 0:01:54.1]} 57... Rc1 {[%clk 0:00:21.8]} 58. Ra8+ {[%clk 0:01:55.1]}
58... Kb6 {[%clk 0:00:22.6]} 59. Rb8+ {[%clk 0:01:56.2]} 59... Ka7 {[%clk
0:00:24]} 60. Rb4 {[%clk 0:01:56.7]} 60... Rd1+ {[%clk 0:00:25]} 1/2-1/2

[Event "*** Biggest EVER Titled Tuesday"]
[Site "Chess.com"]
[Date "2018.04.17"]
[Round "4"]
[White "ChessTrail"]
[Black "oskariot"]
[Result "0-1"]
[WhiteElo "2483"]
[BlackElo "2400"]
[TimeControl "180+2"]
[EndTime "13:52:58 PDT"]
[Termination "oskariot won by checkmate"]

1. e4 {[%clk 0:03:01.9]} 1... e6 {[%clk 0:02:59.6]} 2. d4 {[%clk 0:03:02.4]}
2... d5 {[%clk 0:03:01.2]} 3. Nc3 {[%clk 0:03:03.2]} 3... Nf6 {[%clk 0:03:02.2]}
4. Bg5 {[%clk 0:03:03.3]} 4... Be7 {[%clk 0:03:02.4]} 5. Bxf6 {[%clk 0:02:58.6]}
5... Bxf6 {[%clk 0:02:51.3]} 6. e5 {[%clk 0:02:58.7]} 6... Be7 {[%clk
0:02:52.3]} 7. h4 {[%clk 0:02:59.5]} 7... c5 {[%clk 0:02:53.9]} 8. Qg4 {[%clk
0:02:58.1]} 8... O-O {[%clk 0:02:49.8]} 9. O-O-O {[%clk 0:02:55.6]} 9... cxd4
{[%clk 0:02:50]} 10. Nb5 {[%clk 0:02:55.6]} 10... Nc6 {[%clk 0:02:48.2]} 11. f4
{[%clk 0:02:38.2]} 11... f5 {[%clk 0:02:28.5]} 12. Qg3 {[%clk 0:02:30.5]} 12...
Qb6 {[%clk 0:02:08.1]} 13. Nf3 {[%clk 0:02:27.2]} 13... Bc5 {[%clk 0:02:06.4]}
14. h5 {[%clk 0:02:08.4]} 14... a6 {[%clk 0:02:00.9]} 15. Nd6 {[%clk 0:02:03.8]}
15... Bxd6 {[%clk 0:01:59.1]} 16. exd6 {[%clk 0:02:04.9]} 16... Qd8 {[%clk
0:01:44.9]} 17. Ne5 {[%clk 0:01:59]} 17... h6 {[%clk 0:01:21.2]} 18. Qa3 {[%clk
0:01:49]} 18... Nxe5 {[%clk 0:01:07.6]} 19. fxe5 {[%clk 0:01:49.3]} 19... Qg5+
{[%clk 0:01:08.8]} 20. Kb1 {[%clk 0:01:48.8]} 20... Qe3 {[%clk 0:01:09.6]} 21.
Qa4 {[%clk 0:01:36.8]} 21... b5 {[%clk 0:00:55.7]} 22. Bxb5 {[%clk 0:01:33.3]}
22... Qxe5 {[%clk 0:00:51.5]} 23. d7 {[%clk 0:01:26.4]} 23... Bb7 {[%clk
0:00:49.8]} 24. Bc6 {[%clk 0:01:19]} 24... Bxc6 {[%clk 0:00:46.7]} 25. Qxc6
{[%clk 0:01:19.9]} 25... Qf6 {[%clk 0:00:24.6]} 26. Rhe1 {[%clk 0:01:15]} 26...
Kf7 {[%clk 0:00:24.9]} 27. Rxd4 {[%clk 0:01:08.8]} 27... Rfd8 {[%clk 0:00:25.8]}
28. Rb4 {[%clk 0:00:47.1]} 28... Rab8 {[%clk 0:00:27.1]} 29. Rxb8 {[%clk
0:00:28.5]} 29... Rxb8 {[%clk 0:00:29]} 30. b3 {[%clk 0:00:28.2]} 30... Rd8
{[%clk 0:00:29.5]} 31. c4 {[%clk 0:00:26]} 31... dxc4 {[%clk 0:00:27.2]} 32.
bxc4 {[%clk 0:00:25.1]} 32... Rb8+ {[%clk 0:00:18.9]} 33. Kc1 {[%clk 0:00:26]}
33... Qc3+ {[%clk 0:00:14.4]} 34. Kd1 {[%clk 0:00:24]} 34... Rb1+ {[%clk
0:00:16.3]} 35. Ke2 {[%clk 0:00:25.3]} 35... Rxe1+ {[%clk 0:00:18.2]} 36. Kf2
{[%clk 0:00:25.9]} 36... Qe3# {[%clk 0:00:20.1]} 0-1

[Event "*** Biggest EVER Titled Tuesday"]
[Site "Chess.com"]
[Date "2018.04.17"]
[Round "4"]
[White "BergenChessAcademy"]
[Black "Saitama_Hero"]
[Result "0-1"]
[WhiteElo "2199"]
[BlackElo "2154"]
[TimeControl "180+2"]
[EndTime "13:53:10 PDT"]
[Termination "Saitama_Hero won on time"]

1. d4 {[%clk 0:02:57.8]} 1... Nf6 {[%clk 0:02:57.8]} 2. c3 {[%clk 0:02:58.1]}
2... g6 {[%clk 0:02:58]} 3. h4 {[%clk 0:02:56.1]} 3... Bg7 {[%clk 0:02:56.9]} 4.
Nf3 {[%clk 0:02:55.2]} 4... d6 {[%clk 0:02:53.4]} 5. Nbd2 {[%clk 0:02:39.7]}
5... O-O {[%clk 0:02:49.5]} 6. e4 {[%clk 0:02:38.9]} 6... e5 {[%clk 0:02:47.5]}
7. d5 {[%clk 0:02:34.7]} 7... c6 {[%clk 0:02:46.8]} 8. c4 {[%clk 0:02:31.2]}
8... b5 {[%clk 0:02:12.3]} 9. dxc6 {[%clk 0:02:20.7]} 9... bxc4 {[%clk
0:02:12.5]} 10. Nxc4 {[%clk 0:02:20.5]} 10... Nxc6 {[%clk 0:02:03.6]} 11. Qxd6
{[%clk 0:01:55.9]} 11... Qe8 {[%clk 0:01:52.4]} 12. Ncxe5 {[%clk 0:01:40.2]}
12... Bb7 {[%clk 0:01:48.8]} 13. Bb5 {[%clk 0:01:32.8]} 13... Nxe4 {[%clk
0:01:23.4]} 14. Qd5 {[%clk 0:00:51.8]} 14... Nxe5 {[%clk 0:01:09.1]} 15. Qxb7
{[%clk 0:00:34.2]} 15... Qd8 {[%clk 0:00:32.7]} 16. Nxe5 {[%clk 0:00:21.2]}
16... Bxe5 {[%clk 0:00:28]} 17. O-O {[%clk 0:00:21.7]} 17... Qxh4 {[%clk
0:00:24.4]} 18. g3 {[%clk 0:00:12]} 18... Qg4 {[%clk 0:00:11.9]} 19. Bc6 {[%clk
0:00:07.4]} 19... Nxg3 {[%clk 0:00:10.1]} 20. fxg3 {[%clk 0:00:06.1]} 20...
Qxg3+ {[%clk 0:00:12]} 21. Bg2 {[%clk 0:00:06.5]} 21... Bd4+ {[%clk 0:00:12.2]}
22. Rf2 {[%clk 0:00:02.9]} 22... Qxf2+ {[%clk 0:00:10.8]} 23. Kh2 {[%clk
0:00:04.1]} 23... Qh4+ {[%clk 0:00:11.5]} 24. Bh3 {[%clk 0:00:05.2]} 24... Be5+
{[%clk 0:00:12.2]} 25. Kg2 {[%clk 0:00:06.3]} 25... Qg3+ {[%clk 0:00:11.9]} 26.
Kf1 {[%clk 0:00:05.4]} 26... Qxh3+ {[%clk 0:00:13.2]} 27. Qg2 {[%clk 0:00:05.3]}
27... Qf5+ {[%clk 0:00:12.2]} 28. Kg1 {[%clk 0:00:05.6]} 28... Bd4+ {[%clk
0:00:11.3]} 29. Kh2 {[%clk 0:00:06.5]} 29... Rae8 {[%clk 0:00:09.5]} 30. Bg5
{[%clk 0:00:04.7]} 30... Re4 {[%clk 0:00:07.7]} 31. Rf1 {[%clk 0:00:04.3]} 31...
Qe6 {[%clk 0:00:08]} 32. Kh1 {[%clk 0:00:03.4]} 32... Rg4 {[%clk 0:00:08.4]} 0-1